fUST/lending_fUST_20260130
["ID","MTS","AMOUNT","RATE_DAILY","PERIOD"]
[404036732,1769776233100,-147.24133333,0.00017469,2]
[404036735,1769776238447,-481.88603855,0.00017469,2]
[404036736,1769776238456,-500.0,0.00017469,2]
[404036737,1769776238466,-500.0,0.00017469,2]
[404036738,1769776238475,-229.38673405,0.00017469,2]
[404036739,1769776238484,-151.30445,0.00017469,2]
[404036740,1769776238492,-24532.11707122,0.0001747,2]
[404036741,1769776238501,-378.8694395,0.00017479,2]
[404036742,1769776238510,-161.53462202,0.00017768,2]
[404036743,1769776238519,-600.0,0.00017808,2]
[404036744,1769776238528,-287.0,0.00017879,2]
[404036745,1769776238537,-232.16379145,0.00018369,2]
[404036746,1769776238546,-378.4083536,0.00018438,2]
[404036747,1769776238555,-378.8694395,0.00018466,2]
[404036748,1769776238563,-378.8694395,0.00018466,2]
[404036749,1769776238572,-378.8694395,0.00018466,2]
[404036750,1769776238581,-378.8694395,0.00018466,2]
[404036751,1769776238590,-177.60864713,0.0001855,2]
[404036782,1769776246662,-378.8694395,0.00017479,2]
[404036783,1769776246674,-109.93620194,0.0001855,2]
[404036784,1769776246685,-900.7769554,0.00018722,2]
[404036785,1769776246694,-158.05,0.000192,2]
[404036786,1769776246703,-630.0,0.00019433,2]
[404036787,1769776246712,-1369.0,0.00019433,2]
[404036788,1769776246721,-2150.0,0.00019433,2]
[404036789,1769776246730,-179.0,0.00019433,2]
[404036790,1769776246739,-418.0,0.00019433,2]
[404036791,1769776246749,-720.0,0.00019588,2]
[404036792,1769776246758,-212.5826696,0.00019843,2]
[404036945,1769777020968,4385.30293231,0.0003473,120]
[404039419,1769777244135,-164.67,0.0001,2]
[404039420,1769777244158,-560.0,0.0001,2]
[404039421,1769777244181,-150.0,0.0001085,2]
[404039423,1769777244204,-177.0,0.0001285,2]
[404039424,1769777244227,-164.67,0.000134,2]
[404039426,1769777244248,-204.0,0.0001485,2]
[404039427,1769777244270,-1041.66666667,0.00015987,2]
[404039429,1769777244291,-412.34441889,0.00016033,2]
[404042700,1769777431597,-825.0,0.00015933,2]
[404042701,1769777431608,-535.23264451,0.00015933,2]
[404042702,1769777431654,-12188.99085826,0.00015933,2]
[404042703,1769777431712,-914.98005166,0.00015933,2]
[404042704,1769777431723,-311.559,0.00015933,2]
[404042706,1769777437731,-861.4296,0.00015933,2]
[404042707,1769777437743,-4451.70526538,0.00015933,2]
[404042708,1769777437758,-6682.22560247,0.00015933,2]
[404042709,1769777437771,-6467.32375413,0.00015933,2]
[404042710,1769777437782,-1888.3931287,0.00015933,2]
[404042711,1769777437794,-6382.20423893,0.00015933,2]
[404042712,1769777437805,-3259.11737104,0.00015933,2]
[404042713,1769777437819,-20333.49665064,0.00015933,2]
[404042714,1769777437828,-225.30608909,0.00016033,2]
[404042715,1769777437840,-74.69391091,0.00016033,2]
[404042716,1769777437849,-888.0,0.00016033,2]
[404042717,1769777437859,-653.0,0.00016033,2]
[404042718,1769777437868,-418.0,0.00016034,2]
[404042719,1769777437877,-179.0,0.00016034,2]
[404042720,1769777437887,-630.0,0.00016034,2]
[404042721,1769777437896,-2150.0,0.00016034,2]
[404042722,1769777437906,-164.67,0.000167,2]
[404042723,1769777437915,-231.0,0.0001685,2]
[404042724,1769777437924,-225.1942388,0.00017751,2]
[404042725,1769777437933,-258.0,0.0001885,2]
[404042726,1769777437942,-418.0,0.00019034,2]
[404042727,1769777437951,-179.0,0.00019034,2]
[404042728,1769777437961,-372.47332214,0.00019446,2]
[404042739,1769777444592,-71.10330308,0.00019446,2]
[404042740,1769777444601,-160.0,0.00019669,2]
[404042741,1769777444610,-330.10068929,0.00019763,2]
[404043470,1769777610380,-5000000.0,0.0003473,20]
[404043861,1769777626396,-5000000.0,0.00034727,20]
[404045597,1769777710350,151.0,0.00034727,120]
[404045600,1769777710531,250.0,0.00034727,120]
[404045603,1769777710633,250.0,0.00034727,120]
[404045610,1769777710972,151.0,0.00034727,120]
[404045623,1769777711606,250.0,0.00034727,120]
[404045632,1769777712052,414.0,0.00034727,120]
[404045638,1769777712341,250.0,0.00034727,120]
[404045652,1769777713053,250.0,0.00034727,120]
[404045657,1769777713278,250.0,0.00034727,120]
[404045660,1769777713355,202.31296835,0.00034727,120]
[404045665,1769777713580,2000.0,0.00034727,120]
[404045674,1769777714007,461.67526834,0.00034727,120]
[404045690,1769777714979,250.0,0.00034727,120]
[404045700,1769777715466,2000.0,0.00034727,120]
[404045703,1769777715599,2000.0,0.00034727,120]
[404045727,1769777716876,2000.0,0.00034727,120]
[404045729,1769777716950,500.0,0.00034727,120]
[404045740,1769777717474,2230.315306,0.00034727,120]
[404045771,1769777719110,1146.97333925,0.0003013,120]
[404045776,1769777719324,2000.0,0.00034727,120]
[404045777,1769777719566,151.0,0.00034727,120]
[404045849,1769777723483,151.0,0.00034727,120]
[404045881,1769777725368,168.3888056,0.00034727,120]
[404045888,1769777725684,599.60298507,0.00034727,120]
[404050559,1769778010193,250.0,0.00034728,120]
[404050567,1769778010645,250.0,0.00034728,120]
[404050570,1769778010817,250.0,0.00034728,120]
[404050580,1769778011374,250.0,0.00034728,120]
[404050603,1769778013003,151.0,0.00034728,120]
[404050649,1769778015968,250.0,0.00034728,120]
[404050673,1769778017521,2000.0,0.00034728,120]
[404050684,1769778018343,151.0,0.00034728,120]
[404050695,1769778018950,151.0,0.00034728,120]
[404050703,1769778019450,2000.0,0.00034728,120]
[404050736,1769778021416,414.0,0.00034728,120]
[404050751,1769778022364,2000.0,0.00034728,120]
[404050775,1769778024125,2230.315306,0.00034728,120]
[404050871,1769778030535,500.0,0.00034728,120]
[404050883,1769778031173,500.0,0.00034728,120]
[404051703,1769778269687,-902.36,0.00034728,30]
[404051704,1769778269765,-902.36,0.00034728,30]
[404051705,1769778269842,-902.36,0.00034728,30]
[404051706,1769778269919,-902.36,0.00034728,30]
[404051707,1769778269997,-510.83,0.00034728,30]
[404051708,1769778270075,-902.36,0.00034728,30]
[404051709,1769778270155,-510.83,0.00034728,30]
[404051710,1769778270230,-902.36,0.00034728,30]
[404051711,1769778270301,-510.83,0.00034728,30]
[404051712,1769778270373,-902.36,0.00034728,30]
[404051713,1769778270445,-510.83,0.00034728,30]
[404051714,1769778270518,-902.36,0.00034728,30]
[404051715,1769778270588,-510.83,0.00034728,30]
[404051716,1769778270667,-902.36,0.00034728,30]
[404051717,1769778270743,-510.83,0.00034728,30]
[404051718,1769778270812,-902.36,0.00034728,30]
[404051719,1769778270881,-902.36,0.00034728,30]
[404051720,1769778270952,-510.83,0.00034728,30]
[404051721,1769778271023,-902.36,0.00034728,30]
[404051722,1769778271090,-510.83,0.00034728,30]
[404051723,1769778271162,-902.36,0.00034728,30]
[404051724,1769778271238,-510.83,0.00034728,30]
[404051725,1769778271309,-902.36,0.00034728,30]
[404051726,1769778271379,-510.83,0.00034728,30]
[404051727,1769778271451,-902.36,0.00034728,30]
[404051728,1769778271525,-510.83,0.00034728,30]
[404051729,1769778271604,-902.36,0.00034728,30]
[404051730,1769778271684,-510.83,0.00034728,30]
[404051731,1769778271765,-902.36,0.00034728,30]
[404051732,1769778271841,-510.83,0.00034728,30]
[404051733,1769778271913,-902.36,0.00034728,30]
[404051734,1769778271982,-510.83,0.00034728,30]
[404051735,1769778272048,-902.36,0.00034728,30]
[404051736,1769778272120,-510.83,0.00034728,30]
[404051737,1769778272190,-902.36,0.00034728,30]
[404051738,1769778272259,-510.83,0.00034728,30]
[404051739,1769778272331,-902.36,0.00034728,30]
[404051740,1769778272403,-510.83,0.00034728,30]
[404051741,1769778272475,-902.36,0.00034728,30]
[404051742,1769778272545,-902.36,0.00034728,30]
[404051743,1769778272619,-510.83,0.00034728,30]
[404051744,1769778272703,-902.43431607,0.00034728,30]
[404051745,1769778272790,-510.83,0.00034728,30]
[404051746,1769778272869,-510.83,0.00034728,30]
[404051747,1769778272937,-510.83,0.00034728,30]
[404051748,1769778273002,-510.83,0.00034728,30]
[404051749,1769778273069,-510.83,0.00034728,30]
[404051750,1769778273136,-510.87355607,0.00034728,30]
[404051751,1769778273208,-500.0,0.00034728,31]
[404051752,1769778273281,-500.0,0.00034728,31]
[404051753,1769778273356,-500.0,0.00034728,31]
[404051754,1769778273434,-500.0,0.00034728,31]
[404051755,1769778273510,-500.0,0.00034728,31]
[404051756,1769778273587,-500.0,0.00034728,31]
[404051757,1769778273665,-500.0,0.00034728,31]
[404051758,1769778273741,-500.0,0.00034728,31]
[404051759,1769778273813,-500.0,0.00034728,31]
[404051760,1769778273886,-500.0,0.00034728,31]
[404051761,1769778273960,-500.0,0.00034728,31]
[404051762,1769778274035,-500.0,0.00034728,31]
[404051763,1769778274114,-500.0,0.00034728,31]
[404051764,1769778274191,-500.0,0.00034728,30]
[404051765,1769778274268,-500.0,0.00034728,30]
[404051766,1769778274341,-500.0,0.00034728,30]
[404051767,1769778274421,-500.0,0.00034728,30]
[404051768,1769778274502,-515.366398,0.00034728,30]
[404051769,1769778274582,-500.0,0.00034728,30]
[404051770,1769778274767,-500.0,0.00034728,30]
[404051771,1769778274848,-500.0,0.00034728,30]
[404051772,1769778274931,-500.0,0.00034728,30]
[404051773,1769778275013,-500.0,0.00034728,30]
[404051774,1769778275092,-500.0,0.00034728,30]
[404051775,1769778275172,-500.0,0.00034728,30]
[404051776,1769778275252,-334.32866308,0.00034728,30]
[404051777,1769778275338,-500.0,0.00034728,60]
[404051778,1769778275426,-500.0,0.00034728,60]
[404051779,1769778275515,-500.0,0.00034728,60]
[404051780,1769778275606,-500.0,0.00034728,60]
[404051781,1769778275694,-500.0,0.00034728,60]
[404051782,1769778275781,-500.0,0.00034728,60]
[404051783,1769778275858,-500.0,0.00034728,60]
[404051784,1769778275935,-500.0,0.00034728,60]
[404051785,1769778276010,-500.0,0.00034728,60]
[404051786,1769778276078,-572.44761677,0.00034728,60]
[404051787,1769778276149,-151.0,0.00034728,60]
[404051788,1769778276226,-151.0,0.00034728,60]
[404051789,1769778276305,-151.0,0.00034728,60]
[404051790,1769778276382,-151.0,0.00034728,60]
[404051791,1769778276458,-151.0,0.00034728,60]
[404051792,1769778276536,-151.0,0.00034728,60]
[404051793,1769778276615,-151.0,0.00034728,60]
[404051794,1769778276695,-519.25377369,0.00034728,30]
[404051795,1769778276772,-500.0,0.00034728,30]
[404051796,1769778276850,-452.74610098,0.00034728,30]
[404051797,1769778276930,-500.0,0.00034728,60]
[404051798,1769778277012,-202.40776996,0.00034728,60]
[404051799,1769778277099,-500.64736132,0.00034728,30]
[404051800,1769778277177,-500.0,0.00034728,60]
[404051801,1769778277253,-500.0,0.00034728,60]
[404051802,1769778277330,-500.0,0.00034728,60]
[404051803,1769778277407,-526.72866427,0.00034728,60]
[404051804,1769778277485,-500.0,0.00034728,30]
[404051805,1769778277559,-500.0,0.00034728,30]
[404051806,1769778277634,-500.0,0.00034728,30]
[404051807,1769778277710,-429.64196549,0.00034728,30]
[404051808,1769778277779,-850.10329035,0.00034728,30]
[404051809,1769778277847,-1048.38102093,0.00034728,30]
[404051810,1769778277919,-578.1187383,0.00034728,60]
[404051811,1769778277990,-216.26267215,0.00034728,30]
[404051812,1769778278063,-238.00813153,0.00034728,30]
[404051813,1769778278140,-453.27078818,0.00034728,60]
[404051814,1769778278213,-349.5816199,0.00034728,30]
[404051815,1769778278285,-435.9651528,0.00034728,33]
[404051816,1769778278354,-369.63086862,0.00034728,31]
[404051817,1769778278423,-952.10514754,0.00034728,30]
[404051818,1769778278496,-607.14573881,0.00034728,30]
[404051819,1769778278573,-151.0,0.00034728,60]
[404051820,1769778278650,-151.0,0.00034728,60]
[404051821,1769778278736,-426.26,0.00034728,86]
[404051822,1769778278812,-573.86,0.00034728,86]
[404051823,1769778278890,-155.58319184,0.00034728,30]
[404051824,1769778278964,-23666.0,0.00034728,30]
[404051825,1769778279036,-959.11453913,0.00034728,30]
[404051826,1769778279109,-17600.69061323,0.00034728,60]
[404051827,1769778279184,-7000.0,0.00034728,60]
[404051828,1769778279259,-3606.0,0.00034728,30]
[404051829,1769778279332,-4000.0,0.00034728,30]
[404051830,1769778279402,-4000.0,0.00034728,60]
[404051831,1769778279470,-500.0,0.00034728,30]
[404051832,1769778279535,-500.0,0.00034728,30]
[404051833,1769778279599,-500.0,0.00034728,30]
[404051834,1769778279670,-500.0,0.00034728,30]
[404051835,1769778279737,-500.0,0.00034728,30]
[404051836,1769778279804,-500.0,0.00034728,30]
[404051837,1769778279865,-500.0,0.00034728,30]
[404051838,1769778279928,-500.0,0.00034728,30]
[404051839,1769778279993,-500.0,0.00034728,30]
[404051840,1769778280056,-502.32718381,0.00034728,30]
[404051841,1769778280118,-3830.453985,0.00034728,60]
[404051842,1769778280183,-50475.24775689,0.00034728,31]
[404051843,1769778280251,-5500.96770091,0.00034728,30]
[404051844,1769778280318,-12292.58406419,0.00034728,31]
[404051845,1769778280391,-500000.00000099,0.00034728,90]
[404051846,1769778280461,-231.20499876,0.00034728,30]
[404051847,1769778280533,-2000.0,0.00034728,30]
[404051848,1769778280607,-2000.0,0.00034728,38]
[404051849,1769778280682,-2000.0,0.00034728,30]
[404051850,1769778280755,-2000.0,0.00034728,30]
[404051851,1769778280829,-759.248858,0.00034728,31]
[404051852,1769778280903,-759.248858,0.00034728,31]
[404051853,1769778280977,-759.248858,0.00034728,31]
[404051854,1769778281053,-759.248858,0.00034728,31]
[404051855,1769778281127,-759.248858,0.00034728,31]
[404051856,1769778281195,-759.248858,0.00034728,31]
[404051857,1769778281261,-759.248858,0.00034728,31]
[404051858,1769778281325,-759.248858,0.00034728,31]
[404051859,1769778281384,-759.248858,0.00034728,31]
[404051860,1769778281441,-759.248858,0.00034728,31]
[404051861,1769778281500,-759.248858,0.00034728,31]
[404051862,1769778281571,-759.248858,0.00034728,31]
[404051863,1769778281648,-759.248858,0.00034728,31]
[404051864,1769778281728,-759.248858,0.00034728,31]
[404051865,1769778281909,-759.248858,0.00034728,31]
[404051866,1769778281984,-759.248858,0.00034728,31]
[404051867,1769778282053,-759.248858,0.00034728,31]
[404051868,1769778282120,-759.248858,0.00034728,31]
[404051869,1769778282188,-759.248858,0.00034728,31]
[404051870,1769778282256,-759.248851,0.00034728,31]
[404051871,1769778282328,-151.0,0.00034728,31]
[404051872,1769778282406,-151.0,0.00034728,31]
[404051873,1769778282481,-151.0,0.00034728,31]
[404051874,1769778282564,-151.0,0.00034728,31]
[404051875,1769778282643,-151.0,0.00034728,31]
[404051876,1769778282720,-215.676601,0.00034728,31]
[404051877,1769778282791,-250.0,0.00034728,30]
[404051878,1769778282866,-250.0,0.00034728,38]
[404051879,1769778282939,-250.0,0.00034728,30]
[404051880,1769778283014,-1021.484696,0.00034728,31]
[404051881,1769778283088,-250.0,0.00034728,38]
[404051882,1769778283162,-250.0,0.00034728,38]
[404051883,1769778283233,-1021.484696,0.00034728,31]
[404051884,1769778283303,-1021.484696,0.00034728,31]
[404051885,1769778283372,-151.0,0.00034728,31]
[404051886,1769778283441,-250.0,0.00034728,38]
[404051887,1769778283507,-1021.484696,0.00034728,31]
[404051888,1769778283576,-151.0,0.00034728,31]
[404051889,1769778283651,-1021.484696,0.00034728,31]
[404051890,1769778283727,-156.587,0.00034728,30]
[404051891,1769778283802,-151.0,0.00034728,31]
[404051892,1769778283882,-1021.484696,0.00034728,31]
[404051893,1769778283957,-151.0,0.00034728,31]
[404051894,1769778284033,-1021.484696,0.00034728,31]
[404051895,1769778284111,-162.380719,0.00034728,38]
[404051896,1769778284187,-151.0,0.00034728,31]
[404051897,1769778284263,-1021.484696,0.00034728,31]
[404051898,1769778284334,-151.0,0.00034728,31]
[404051899,1769778284405,-1021.484696,0.00034728,31]
[404051900,1769778284476,-162.380719,0.00034728,38]
[404051901,1769778284546,-1021.484696,0.00034728,31]
[404051902,1769778284620,-151.0,0.00034728,31]
[404051903,1769778284691,-1021.484696,0.00034728,31]
[404051904,1769778284765,-151.0,0.00034728,31]
[404051905,1769778284835,-1021.484696,0.00034728,31]
[404051906,1769778284908,-151.0,0.00034728,31]
[404051907,1769778284977,-1021.484696,0.00034728,31]
[404051908,1769778285049,-151.0,0.00034728,31]
[404051909,1769778285118,-1021.484696,0.00034728,31]
[404051910,1769778285188,-151.0,0.00034728,31]
[404051911,1769778285256,-250.0,0.00034728,30]
[404051912,1769778285322,-1021.484696,0.00034728,31]
[404051913,1769778285385,-1021.484696,0.00034728,31]
[404051914,1769778285447,-151.0,0.00034728,31]
[404051915,1769778285508,-250.0,0.00034728,38]
[404051916,1769778285574,-1021.484696,0.00034728,31]
[404051917,1769778285649,-151.0,0.00034728,31]
[404051918,1769778285727,-1021.484696,0.00034728,31]
[404051919,1769778285802,-151.0,0.00034728,31]
[404051920,1769778285879,-250.0,0.00034728,38]
[404051921,1769778285954,-1021.484696,0.00034728,31]
[404051922,1769778286028,-151.0,0.00034728,31]
[404051923,1769778286103,-2000.0,0.00034728,30]
[404051924,1769778286180,-1021.484688,0.00034728,31]
[404051925,1769778286254,-235.008282,0.00034728,31]
[404051926,1769778286328,-2000.0,0.00034728,38]
[404051927,1769778286406,-2000.0,0.00034728,30]
[404051928,1769778286490,-2000.0,0.00034728,30]
[404051929,1769778286572,-429.318,0.00034728,30]
[404051930,1769778286657,-445.202766,0.00034728,38]
[404051931,1769778286743,-2074.0,0.00034728,30]
[404051932,1769778286828,-445.202766,0.00034728,38]
[404051933,1769778286907,-2150.738,0.00034728,38]
[404051934,1769778286983,-151.0,0.00034728,31]
[404051935,1769778287056,-151.0,0.00034728,31]
[404051936,1769778287131,-151.0,0.00034728,31]
[404051937,1769778287208,-245.550852,0.00034728,31]
[404051938,1769778287279,-288.643111,0.00034728,31]
[404051939,1769778287352,-288.643111,0.00034728,31]
[404051940,1769778287423,-288.643111,0.00034728,31]
[404051941,1769778287493,-288.643111,0.00034728,31]
[404051942,1769778287565,-288.643111,0.00034728,31]
[404051943,1769778287645,-288.643111,0.00034728,31]
[404051944,1769778287723,-288.643111,0.00034728,31]
[404051945,1769778287801,-288.643111,0.00034728,31]
[404051946,1769778287879,-288.643111,0.00034728,31]
[404051947,1769778287963,-288.643111,0.00034728,31]
[404051948,1769778288042,-288.643111,0.00034728,31]
[404051949,1769778288121,-288.643111,0.00034728,31]
[404051950,1769778288201,-288.643111,0.00034728,31]
[404051951,1769778288275,-288.643111,0.00034728,31]
[404051952,1769778288349,-288.643111,0.00034728,31]
[404051953,1769778288424,-288.643111,0.00034728,31]
[404051954,1769778288503,-288.643111,0.00034728,31]
[404051955,1769778288582,-288.643111,0.00034728,31]
[404051956,1769778288667,-288.643111,0.00034728,31]
[404051957,1769778288748,-288.64312,0.00034728,31]
[404051958,1769778288825,-283.284371,0.00034728,40]
[404051959,1769778288905,-151.0,0.00034728,31]
[404051960,1769778289086,-261.846698,0.00034728,31]
[404051961,1769778289161,-200.011494,0.00034728,31]
[404051962,1769778289239,-200.011494,0.00034728,31]
[404051963,1769778289313,-200.011494,0.00034728,31]
[404051964,1769778289388,-200.011494,0.00034728,31]
[404051965,1769778289463,-200.011494,0.00034728,31]
[404051966,1769778289531,-200.011494,0.00034728,31]
[404051967,1769778289599,-188.546249,0.00034728,31]
[404051968,1769778289675,-200.011494,0.00034728,31]
[404051969,1769778289748,-188.546249,0.00034728,31]
[404051970,1769778289814,-200.011494,0.00034728,31]
[404051971,1769778289880,-188.546249,0.00034728,31]
[404051972,1769778289952,-200.011494,0.00034728,31]
[404051973,1769778290025,-188.546249,0.00034728,31]
[404051974,1769778290097,-200.011494,0.00034728,31]
[404051975,1769778290169,-188.546249,0.00034728,31]
[404051976,1769778290241,-200.011494,0.00034728,31]
[404051977,1769778290312,-188.546249,0.00034728,31]
[404051978,1769778290383,-200.011494,0.00034728,31]
[404051979,1769778290459,-200.011494,0.00034728,31]
[404051980,1769778290531,-188.546249,0.00034728,31]
[404051981,1769778290602,-200.011494,0.00034728,31]
[404051982,1769778290678,-188.546249,0.00034728,31]
[404051983,1769778290751,-200.011494,0.00034728,31]
[404051984,1769778290819,-188.546249,0.00034728,31]
[404051985,1769778290894,-200.011494,0.00034728,31]
[404051986,1769778290971,-188.546249,0.00034728,31]
[404051987,1769778291048,-188.546249,0.00034728,31]
[404051988,1769778291125,-200.011494,0.00034728,31]
[404051989,1769778291200,-188.546249,0.00034728,31]
[404051990,1769778291271,-200.011494,0.00034728,31]
[404051991,1769778291345,-188.546249,0.00034728,31]
[404051992,1769778291426,-200.011494,0.00034728,31]
[404051993,1769778291504,-188.546249,0.00034728,31]
[404051994,1769778291582,-200.011494,0.00034728,31]
[404051995,1769778291662,-188.546249,0.00034728,31]
[404051996,1769778291749,-188.546249,0.00034728,31]
[404051997,1769778291827,-188.546249,0.00034728,31]
[404051998,1769778291904,-188.546249,0.00034728,31]
[404051999,1769778291980,-188.546249,0.00034728,31]
[404052000,1769778292053,-188.546243,0.00034728,31]
[404052001,1769778292126,-205.439022,0.00034728,31]
[404052002,1769778292196,-683.207499,0.00034728,31]
[404052003,1769778292269,-683.207499,0.00034728,31]
[404052004,1769778292337,-683.207499,0.00034728,31]
[404052005,1769778292409,-683.207499,0.00034728,31]
[404052006,1769778292482,-683.207499,0.00034728,31]
[404052007,1769778292556,-683.207499,0.00034728,31]
[404052008,1769778292628,-683.207499,0.00034728,31]
[404052009,1769778292703,-683.207499,0.00034728,31]
[404052010,1769778292779,-683.207499,0.00034728,31]
[404052011,1769778292850,-683.207499,0.00034728,31]
[404052012,1769778292921,-683.207499,0.00034728,31]
[404052013,1769778292992,-683.207499,0.00034728,31]
[404052014,1769778293063,-683.207499,0.00034728,31]
[404052015,1769778293144,-683.207499,0.00034728,31]
[404052016,1769778293215,-683.207499,0.00034728,31]
[404052017,1769778293288,-683.207499,0.00034728,31]
[404052018,1769778293365,-683.207499,0.00034728,31]
[404052019,1769778293440,-683.207499,0.00034728,31]
[404052020,1769778293514,-683.207499,0.00034728,31]
[404052021,1769778293589,-683.207506,0.00034728,31]
[404052022,1769778293667,-202.88835,0.00034728,31]
[404052023,1769778293749,-468.092539,0.00034728,31]
[404052024,1769778293831,-202.88835,0.00034728,31]
[404052025,1769778293915,-468.092539,0.00034728,31]
[404052026,1769778293999,-202.88835,0.00034728,31]
[404052027,1769778294084,-468.092539,0.00034728,31]
[404052028,1769778294190,-202.88835,0.00034728,31]
[404052029,1769778294290,-468.092539,0.00034728,31]
[404052030,1769778294387,-202.88835,0.00034728,31]
[404052031,1769778294470,-468.092539,0.00034728,31]
[404052032,1769778294545,-202.88835,0.00034728,31]
[404052033,1769778294624,-468.092539,0.00034728,31]
[404052034,1769778294701,-468.092539,0.00034728,31]
[404052035,1769778294785,-202.88835,0.00034728,31]
[404052036,1769778294860,-468.092539,0.00034728,31]
[404052037,1769778294935,-202.88835,0.00034728,31]
[404052038,1769778295012,-468.092539,0.00034728,31]
[404052039,1769778295090,-202.88835,0.00034728,31]
[404052040,1769778295161,-468.092539,0.00034728,31]
[404052041,1769778295237,-202.88835,0.00034728,31]
[404052042,1769778295311,-468.092539,0.00034728,31]
[404052043,1769778295383,-202.88835,0.00034728,31]
[404052044,1769778295455,-468.092539,0.00034728,31]
[404052045,1769778295528,-202.88835,0.00034728,31]
[404052046,1769778295604,-468.092539,0.00034728,31]
[404052047,1769778295686,-202.88835,0.00034728,31]
[404052048,1769778295762,-468.092539,0.00034728,31]
[404052049,1769778295838,-202.88835,0.00034728,31]
[404052050,1769778295913,-202.88835,0.00034728,31]
[404052051,1769778295990,-468.092539,0.00034728,31]
[404052052,1769778296064,-202.88835,0.00034728,31]
[404052053,1769778296144,-468.092539,0.00034728,31]
[404052054,1769778296351,-468.092539,0.00034728,31]
[404052055,1769778296427,-202.88835,0.00034728,31]
[404052056,1769778296501,-202.88835,0.00034728,31]
[404052057,1769778296573,-468.092539,0.00034728,31]
[404052058,1769778296649,-468.092539,0.00034728,31]
[404052059,1769778296722,-468.092536,0.00034728,31]
[404052060,1769778296792,-202.88835,0.00034728,31]
[404052061,1769778296862,-202.888349,0.00034728,31]
[404052062,1769778296934,-162.056211,0.00034728,31]
[404052063,1769778297007,-162.056211,0.00034728,31]
[404052064,1769778297077,-162.056211,0.00034728,31]
[404052065,1769778297142,-162.056211,0.00034728,31]
[404052066,1769778297211,-162.056211,0.00034728,31]
[404052067,1769778297277,-162.056211,0.00034728,31]
[404052068,1769778297343,-162.056211,0.00034728,31]
[404052069,1769778297414,-162.056211,0.00034728,31]
[404052070,1769778297482,-162.056211,0.00034728,31]
[404052071,1769778297552,-162.056211,0.00034728,31]
[404052072,1769778297628,-162.056211,0.00034728,31]
[404052073,1769778297724,-162.056211,0.00034728,31]
[404052074,1769778297799,-162.056211,0.00034728,31]
[404052075,1769778297869,-162.056211,0.00034728,31]
[404052076,1769778297944,-151.0,0.00034728,31]
[404052077,1769778298032,-162.056211,0.00034728,31]
[404052078,1769778298105,-151.0,0.00034728,31]
[404052079,1769778298177,-162.056211,0.00034728,31]
[404052080,1769778298251,-168.518728,0.00034728,31]
[404052081,1769778298326,-162.056211,0.00034728,31]
[404052082,1769778298401,-162.056211,0.00034728,31]
[404052083,1769778298478,-162.056211,0.00034728,31]
[404052084,1769778298552,-162.056218,0.00034728,31]
[404052086,1769778320887,871.05124385,0.00034728,30]
[404052087,1769778323466,151.0,0.00034728,31]
[404052088,1769778323787,151.0,0.00034728,31]
[404052089,1769778324082,151.0,0.00034728,31]
[404052090,1769778324377,151.0,0.00034728,31]
[404052091,1769778324696,151.0,0.00034728,31]
[404052092,1769778325027,151.0,0.00034728,31]
[404052093,1769778325349,239.82379,0.00034728,31]